fUST/lending_fUST_20250922
["ID","MTS","AMOUNT","RATE_DAILY","PERIOD"]
[387054526,1758555066371,-1033.82,0.0002209,2]
[387054527,1758555066380,-679.99,0.0002209,2]
[387054528,1758555066389,-480.0,0.0002209,2]
[387054529,1758555066399,-480.0,0.0002209,2]
[387054530,1758555066408,-545.55,0.0002209,2]
[387054531,1758555066418,-711.08,0.0002209,2]
[387054532,1758555066428,-543.81,0.0002209,2]
[387054533,1758555066438,-480.0,0.00022091,2]
[387054534,1758555066447,-480.0,0.00022091,2]
[387054535,1758555066456,-480.0,0.00022091,2]
[387054536,1758555066465,-480.0,0.00022091,2]
[387054537,1758555066475,-480.0,0.00022091,2]
[387054538,1758555066484,-480.0,0.00022091,2]
[387054539,1758555066495,-480.0,0.00022091,2]
[387054540,1758555066504,-487.87,0.00022091,2]
[387054541,1758555066513,-642.67,0.00022091,2]
[387054542,1758555066523,-480.0,0.00022091,2]
[387054543,1758555066535,-480.0,0.00022091,2]
[387054544,1758555066546,-480.0,0.00022091,2]
[387054545,1758555066556,-480.0,0.00022091,2]
[387054546,1758555066565,-480.0,0.00022091,2]
[387054547,1758555066575,-510.01,0.00022091,2]
[387054548,1758555066584,-658.72,0.00022091,2]
[387054549,1758555066595,-686.5,0.00022091,2]
[387054550,1758555066605,-516.95,0.00022091,2]
[387054551,1758555066616,-586.47,0.00022091,2]
[387054552,1758555066628,-480.0,0.00022091,2]
[387054553,1758555066637,-168.0,0.00022176,2]
[387054554,1758555066647,-480.0,0.00022191,2]
[387054555,1758555066656,-647.9,0.00022191,2]
[387054556,1758555066665,-480.0,0.00022191,2]
[387054557,1758555066675,-713.76,0.00022191,2]
[387054558,1758555066685,-203.952119,0.00022191,7]
[387054559,1758555066694,-203.952119,0.00022191,7]
[387054560,1758555066704,-203.952119,0.00022191,7]
[387054561,1758555066715,-151.0,0.00022191,7]
[387054562,1758555066724,-203.952119,0.00022191,7]
[387054563,1758555066734,-480.0,0.00022191,2]
[387054564,1758555066743,-520.18838681,0.00022191,2]
[387054565,1758555066752,-1946.03,0.00022191,2]
[387054566,1758555066761,-700.63,0.00022191,2]
[387054567,1758555066771,-755.7,0.00022191,2]
[387054568,1758555066784,-3881.0,0.00022191,2]
[387054569,1758555066794,-7649.07,0.00022191,2]
[387054570,1758555066804,-740.08,0.00022191,2]
[387054571,1758555066814,-1976.54,0.00022191,2]
[387054572,1758555066823,-412.12297029,0.00022191,2]
[387054573,1758555066833,-480.0,0.00022191,2]
[387054574,1758555066842,-884.55,0.00022191,2]
[387054575,1758555066852,-856.36,0.00022191,2]
[387054576,1758555066861,-480.0,0.00022191,2]
[387054577,1758555066871,-236.5989793,0.00022192,2]
[387054578,1758555066880,-151.0,0.00022192,2]
[387054579,1758555066889,-604.0,0.00022192,2]
[387054580,1758555066898,-151.0,0.00022192,2]
[387054581,1758555066908,-151.0,0.00022192,2]
[387054582,1758555066918,-168.0,0.00022193,2]
[387054583,1758555066927,-277.0,0.000222,2]
[387054584,1758555066936,-460.0,0.00022216,2]
[387054585,1758555066946,-131088.396723,0.0002222,2]
[387054586,1758555067031,-44504.0404084,0.0002222,2]
[387054587,1758555067645,1303.2356753,0.00019176,2]
[387054588,1758555113690,460.9,0.0002739,120]
[387054589,1758555123531,300.0,0.00019176,2]
[387054590,1758555126996,160.0,8e-07,2]
[387054591,1758555141785,60370.25052974,0.00019078,2]
[387054592,1758555154800,-23008.755909,0.00019177,2]
[387054593,1758555161595,416.99462714,0.00019176,2]
[387054594,1758555161632,500.0,0.00019176,2]
[387054595,1758555161665,630.60804684,0.00019176,2]
[387054596,1758555161716,500.0,0.00019176,2]
[387054597,1758555161800,500.0,0.00019176,2]
[387054598,1758555161841,500.0,0.00019176,2]
[387054599,1758555161885,537.33755612,0.00019176,2]
[387054600,1758555161929,500.0,0.00019176,2]
[387054601,1758555162201,500.0,0.00019176,2]
[387054602,1758555162239,500.0,0.00019176,2]
[387054603,1758555162314,500.0,0.00019176,2]
[387054604,1758555162461,500.0,0.00019176,2]
[387054605,1758555162773,500.0,0.00019176,2]
[387054606,1758555162841,358.19872953,0.00019176,2]
[387054607,1758555174535,65000.0,0.00019,2]
[387054608,1758555174788,500.0,0.00019176,2]
[387054609,1758555175048,500.0,0.00019176,2]
[387054610,1758555175094,500.0,0.00019176,2]
[387054611,1758555175194,500.0,0.00019176,2]
[387054612,1758555175354,500.0,0.00019176,2]
[387054613,1758555175724,500.0,0.00019176,2]
[387054614,1758555175823,500.0,0.00019176,2]
[387054615,1758555176637,350.0,0.00019176,2]
[387054616,1758555192671,645.0,0.00019176,2]
[387054617,1758555265164,658.34,0.00022731,30]
[387054618,1758555303667,287.0,0.00019176,2]
[387054619,1758555304254,98402.88864587,0.00019078,2]
[387054620,1758555309105,1200.0,0.00019176,2]
[387054621,1758555352494,654.75,0.0002196,30]
[387054622,1758555353032,1309.5,0.00023956,30]
[387054623,1758555354912,176.615224,0.00018602,2]
[387054624,1758555355219,332.15743897,0.00018603,2]
[387054628,1758555392188,291.896239,0.00019176,2]
[387054629,1758555392225,500.0,0.00019176,2]
[387054630,1758555392259,441.42563279,0.00019176,2]
[387054631,1758555392339,500.0,0.00019176,2]
[387054632,1758555392394,177.63628929,0.00019176,2]
[387054633,1758555392435,500.0,0.00019176,2]
[387054634,1758555392475,500.0,0.00019176,2]
[387054635,1758555392510,500.0,0.00019176,2]
[387054636,1758555392562,500.0,0.00019176,2]
[387054637,1758555392654,500.0,0.00019176,2]
[387054638,1758555392911,500.0,0.00019176,2]
[387054639,1758555393226,500.0,0.00019176,2]
[387054640,1758555393582,500.0,0.00019176,2]
[387054642,1758555397186,500.0,0.00019176,2]
[387054644,1758555409087,500.0,0.00019176,2]
[387054645,1758555409348,500.0,0.00019176,2]
[387054646,1758555409540,500.0,0.00019176,2]
[387054647,1758555409645,500.0,0.00019176,2]
[387054648,1758555409757,500.0,0.00019176,2]
[387054649,1758555409918,500.0,0.00019176,2]
[387054650,1758555410120,300.0,0.00019176,2]
[387054654,1758555435235,644.03,0.00021998,30]
[387054655,1758555435671,1288.07,0.00023998,30]
[387054656,1758555445637,1963.75536541,0.00019078,2]
[387054657,1758555481181,163.27,0.00015984,2]
[387054658,1758555481591,163.26,0.00015984,2]
[387054660,1758555511996,308.99794295,0.00019077,2]
[387054661,1758555512032,500.0,0.00019077,2]
[387054662,1758555512065,204.3273673,0.00019077,2]
[387054663,1758555512131,500.0,0.00019077,2]
[387054664,1758555512207,484.3454025,0.00019077,2]
[387054665,1758555512450,500.0,0.00019077,2]
[387054666,1758555512536,500.0,0.00019077,2]
[387054667,1758555512677,500.0,0.00019077,2]
[387054668,1758555512989,500.0,0.00019077,2]
[387054669,1758555513250,500.0,0.00019077,2]
[387054670,1758555516712,633.5,0.00021865,30]
[387054671,1758555517138,1266.99,0.00023853,30]
[387054673,1758555529076,500.0,0.00019077,2]
[387054674,1758555529544,500.0,0.00019077,2]
[387054675,1758555529597,650.0,0.00019077,2]
[387054676,1758555533177,263.43362121,0.00027397,120]
[387054677,1758555563086,862.79071,0.0001826,2]
[387054679,1758555598034,660.4,0.00021896,30]
[387054680,1758555598456,1320.81,0.00023886,30]
[387054681,1758555600971,9512.8615367,0.0001826,2]
[387054682,1758555608535,1200.0,0.00019077,2]
[387054684,1758555657244,343.9363932,0.00019078,2]
[387054685,1758555679498,649.6,0.00021907,30]
[387054686,1758555679935,1299.19,0.00023899,30]
[387054687,1758555730228,1374.6395527,0.00018218,2]
[387054689,1758555736866,1200.0,0.00019077,2]
[387054690,1758555739470,187.822338,0.00018218,2]
[387054696,1758555760529,638.97,0.00021922,30]
[387054697,1758555760956,1277.93,0.00023915,30]
[387054699,1758555783144,4100.3429094,0.00018178,2]
[387054700,1758555783870,300.0,0.00019077,2]
[387054701,1758555787256,500.0,0.00019077,2]
[387054702,1758555787298,500.0,0.00019077,2]
[387054703,1758555787343,168.4394359,0.00019077,2]
[387054704,1758555787383,500.0,0.00019077,2]
[387054705,1758555787429,500.0,0.00019077,2]
[387054706,1758555787469,500.0,0.00019077,2]
[387054707,1758555787510,341.2536372,0.00019077,2]
[387054708,1758555787553,500.0,0.00019077,2]
[387054709,1758555787597,500.0,0.00019077,2]
[387054710,1758555787639,500.0,0.00019077,2]
[387054711,1758555787681,500.0,0.00019077,2]
[387054712,1758555787875,216.98844771,0.00019077,2]
[387054713,1758555787928,500.0,0.00019077,2]
[387054714,1758555787991,500.0,0.00019077,2]
[387054715,1758555788025,500.0,0.00019077,2]
[387054716,1758555788066,500.0,0.00019077,2]
[387054717,1758555788109,500.0,0.00019077,2]
[387054718,1758555788143,500.0,0.00019077,2]
[387054719,1758555788185,500.0,0.00019077,2]
[387054720,1758555788222,500.0,0.00019077,2]
[387054721,1758555788264,500.0,0.00019077,2]
[387054722,1758555788314,500.0,0.00019077,2]
[387054723,1758555788406,500.0,0.00019077,2]
[387054724,1758555788494,609.0827088,0.00019077,2]
[387054725,1758555788541,500.0,0.00019077,2]
[387054726,1758555788667,500.0,0.00019077,2]
[387054727,1758555791815,1005.0986455,0.00019078,2]
[387054728,1758555799028,150.0,0.00029234,60]
[387054729,1758555805233,500.0,0.00019077,2]
[387054730,1758555805341,500.0,0.00019077,2]
[387054731,1758555805387,300.0,0.00019077,2]
[387054732,1758555805432,500.0,0.00019077,2]
[387054734,1758555843002,628.51,0.00021927,30]
[387054735,1758555843436,1257.02,0.0002392,30]
[387054736,1758555852037,201.5418923,0.00018156,2]
[387054737,1758555862453,613.9411443,0.00018153,2]
[387054744,1758555925794,618.23,0.00021979,30]
[387054745,1758555926346,1236.45,0.00023977,30]
[387054749,1758555959131,-300.0,0.00019076,2]
[387054750,1758555959152,-300.0,0.00019076,2]
[387054751,1758555959174,-1200.0,0.00019076,2]
[387054752,1758555959194,-500.0,0.00019077,2]
[387054753,1758555959215,-500.0,0.00019077,2]
[387054754,1758555959237,-500.0,0.00019077,2]
[387054755,1758555959256,-344.01104131,0.00019077,2]
[387054756,1758555959279,-500.0,0.00019077,2]
[387054757,1758555959302,-546.07191178,0.00019077,2]
[387054758,1758555959323,-3262.15533018,0.00019078,2]
[387054759,1758555959346,-32588.5774881,0.00019078,2]
[387054760,1758555959367,-500.0,0.000191,2]
[387054761,1758555959387,-893.84,0.00019166,3]
[387054762,1758555959408,-446.92,0.00019166,3]
[387054763,1758555959428,-223.46,0.00019166,3]
[387054764,1758555959449,-670.42,0.00019166,3]
[387054765,1758555959469,-50000.0,0.00019168,2]
[387054766,1758555959490,-156.35,0.00019168,3]
[387054767,1758555959511,-469.07,0.00019168,3]
[387054768,1758555959530,-56349.01994171,0.00019176,2]
[387054784,1758556003769,15633.6854521,0.00018236,2]
[387054798,1758556006336,608.11,0.00021997,30]
[387054802,1758556006759,1216.22,0.00023996,30]
[387054818,1758556088672,598.16,0.00022008,30]
[387054819,1758556176115,594.9,0.00022007,30]
[387054871,1758556232526,-357.44316086,0.00019066,2]
[387054872,1758556232536,-171.78576798,0.00019066,2]
[387054874,1758556232545,-407.60438177,0.00019066,2]
[387054876,1758556232554,-300.0,0.00019066,2]
[387054878,1758556232565,-239.95906499,0.00019067,2]
[387054880,1758556232575,-216.29856007,0.00019067,2]
[387054882,1758556232584,-500.0,0.00019067,2]
[387054884,1758556232593,-500.0,0.00019067,2]
[387054886,1758556232602,-500.0,0.00019067,2]
[387054888,1758556232612,-500.0,0.00019067,2]
[387054890,1758556232621,-500.0,0.00019067,2]
[387054892,1758556232630,-500.0,0.00019067,2]
[387054894,1758556232640,-500.0,0.00019067,2]
[387054896,1758556232649,-500.0,0.00019067,2]
[387054898,1758556232658,-500.0,0.00019067,2]
[387054900,1758556232668,-500.0,0.00019067,2]
[387054902,1758556232677,-500.0,0.00019067,2]
[387054904,1758556232686,-500.0,0.00019067,2]
[387054906,1758556232696,-500.0,0.00019067,2]
[387054908,1758556232705,-500.0,0.00019067,2]
[387054910,1758556232714,-239.11990338,0.00019067,2]
[387054912,1758556232724,-500.0,0.00019067,2]
[387054914,1758556232734,-250.0,0.00019067,2]
[387054916,1758556232743,-87902.69892914,0.00019068,2]
[387054919,1758556232754,-2978.58776358,0.00019068,2]
[387054921,1758556232764,-670.06576366,0.00019078,2]
[387054923,1758556232773,-795.04,0.00019168,3]
[387054924,1758556232783,-397.52,0.00019168,3]
[387054926,1758556232791,-198.76,0.00019168,3]
[387054928,1758556232801,-596.32,0.00019168,3]
[387054930,1758556232811,-1200.0,0.00019174,2]
[387054932,1758556232820,-17692.08834916,0.00019175,2]
[387054934,1758556232831,-462.228,0.00019175,2]
[387054936,1758556232843,-370.0,0.00019175,2]
[387055018,1758556241359,-20930.53020196,0.00019176,2]
[387055021,1758556241373,-3355.18073061,0.00019176,2]
[387055023,1758556241387,-326.75342642,0.00019176,2]
[387055025,1758556241400,-1113.05740265,0.00019176,2]
[387055045,1758556241600,-45463.87921946,0.00019176,2]
[387055047,1758556241610,-480.0,0.00019178,2]
[387055049,1758556241620,-480.0,0.00019178,2]
[387055051,1758556241631,-480.0,0.00019178,2]
[387055053,1758556241641,-480.0,0.00019178,2]
[387055055,1758556241651,-480.0,0.00019178,2]
[387055057,1758556241663,-480.0,0.00019178,2]
[387055059,1758556241673,-480.0,0.00019178,2]
[387055061,1758556241683,-480.0,0.00019178,2]
[387055063,1758556241694,-480.0,0.00019178,2]
[387055065,1758556241704,-484.84014407,0.00019178,2]
[387055067,1758556241713,-480.0,0.00019178,2]
[387055069,1758556241723,-50.51013841,0.00019178,2]
[387055072,1758556241745,-429.48986159,0.00019178,2]
[387055074,1758556241756,-282.00487224,0.00019178,2]
[387055077,1758556241769,-197.99512776,0.00019178,2]
[387055078,1758556241779,-268.63402841,0.00019178,2]
[387055323,1758556244428,-71.93551931,0.00019178,2]
[387055325,1758556244438,-480.0,0.00019178,2]
[387055327,1758556244447,-480.0,0.00019178,2]
[387055329,1758556244457,-548.27761261,0.00019178,2]
[387055331,1758556244467,-480.0,0.00019178,2]
[387055333,1758556244476,-470.24104845,0.00019178,2]
[387055334,1758556244486,-480.0,0.00019178,2]
[387055336,1758556244495,-480.0,0.00019178,2]
[387055338,1758556244505,-480.0,0.00019178,2]
[387055340,1758556244515,-480.0,0.00019178,2]
[387055342,1758556244524,-480.0,0.00019178,2]
[387055344,1758556244534,-480.0,0.00019178,2]
[387055346,1758556244544,-480.0,0.00019178,2]
[387055348,1758556244553,-480.0,0.00019178,2]
[387055350,1758556244563,-333.03780366,0.00019178,2]
[387055352,1758556244574,-480.0,0.00019178,2]
[387055354,1758556244583,-480.0,0.00019178,2]
[387055356,1758556244593,-480.0,0.00019178,2]
[387055358,1758556244603,-480.0,0.00019178,2]
[387055360,1758556244612,-496.26398348,0.00019178,2]
[387055362,1758556244621,-480.0,0.00019178,2]
[387055364,1758556244631,-480.0,0.00019178,2]
[387055366,1758556244640,-480.0,0.00019178,2]
[387055368,1758556244650,-480.0,0.00019178,2]
[387055370,1758556244661,-480.0,0.00019178,2]
[387055372,1758556244670,-480.0,0.00019178,2]
[387055374,1758556244680,-480.0,0.00019178,2]
[387055376,1758556244690,-223.18948838,0.00019178,2]
[387055378,1758556244700,-317.60549448,0.00019178,2]
[387055381,1758556244717,-162.39450552,0.00019178,2]
[387055383,1758556244727,-480.0,0.00019178,2]
[387055385,1758556244736,-480.0,0.00019178,2]
[387055387,1758556244746,-480.0,0.00019178,2]
[387055389,1758556244756,-480.0,0.00019178,2]
[387055391,1758556244765,-480.0,0.00019178,2]
[387055393,1758556244774,-534.66125865,0.00019178,2]
[387055395,1758556244783,-598.67406893,0.00019178,2]
[387055397,1758556244793,-480.0,0.00019178,2]
[387055399,1758556244803,-480.0,0.00019178,2]
[387055401,1758556244812,-480.0,0.00019178,2]
[387055403,1758556244823,-480.0,0.00019178,2]
[387055405,1758556244834,-480.0,0.00019178,2]
[387055407,1758556244843,-480.0,0.00019178,2]
[387055409,1758556244853,-480.0,0.00019178,2]
[387055411,1758556244865,-487.56177003,0.00019178,2]
[387055413,1758556244876,-474.65273755,0.00019178,2]
[387055415,1758556244886,-546.95007867,0.00019178,2]
[387055417,1758556244896,-480.0,0.00019178,2]
[387055419,1758556244906,-480.0,0.00019178,2]
[387055421,1758556244916,-502.81240924,0.00019178,2]
[387055423,1758556244926,-480.0,0.00019178,2]
[387055425,1758556244937,-480.0,0.00019178,2]
[387055427,1758556244947,-480.0,0.00019178,2]
[387055429,1758556244956,-480.0,0.00019178,2]
[387055431,1758556244965,-480.0,0.00019178,2]
[387055433,1758556244975,-483.87567189,0.00019178,2]
[387055435,1758556244985,-480.0,0.00019178,2]
[387055437,1758556244995,-480.0,0.00019178,2]
[387055439,1758556245006,-480.0,0.00019178,2]
[387055441,1758556245015,-480.0,0.00019178,2]
[387055443,1758556245025,-480.0,0.00019178,2]
[387055445,1758556245035,-480.0,0.00019178,2]
[387055447,1758556245045,-480.0,0.00019178,2]
[387055449,1758556245054,-50.99182041,0.00019178,2]
[387055506,1758556245603,-949.00817959,0.00019178,2]
[387055508,1758556245613,-480.0,0.00019178,2]
[387055510,1758556245622,-480.0,0.00019178,2]
[387055512,1758556245632,-486.56790735,0.00019178,2]
[387055514,1758556245641,-480.0,0.00019178,2]
[387055516,1758556245652,-484.30409549,0.00019178,2]
[387055518,1758556245662,-480.0,0.00019178,2]
[387055520,1758556245673,-480.0,0.00019178,2]
[387055522,1758556245683,-480.0,0.00019178,2]
[387055524,1758556245693,-480.0,0.00019178,2]
[387055526,1758556245702,-480.0,0.00019178,2]
[387055528,1758556245712,-500.0,0.00019178,2]
[387055530,1758556245722,-500.0,0.00019178,2]
[387055532,1758556245731,-500.0,0.00019178,2]
[387055534,1758556245741,-500.0,0.00019178,2]
[387055536,1758556245751,-480.0,0.00019178,2]
[387055538,1758556245761,-481.91258526,0.00019178,2]
[387055540,1758556245770,-480.0,0.00019178,2]
[387055542,1758556245780,-482.68936497,0.00019178,2]
[387055544,1758556245790,-480.0,0.00019178,2]
[387055546,1758556245800,-480.0,0.00019178,2]
[387055548,1758556245810,-480.0,0.00019178,2]
[387055550,1758556245822,-480.0,0.00019178,2]
[387055552,1758556245833,-480.94443006,0.00019178,2]
[387055554,1758556245843,-480.0,0.00019178,2]
[387055556,1758556245858,-480.0,0.00019178,2]
[387055558,1758556245869,-480.0,0.00019178,2]
[387055560,1758556245878,-205.99933318,0.00019178,2]
[387055562,1758556245888,-480.0,0.00019178,2]
[387055564,1758556245899,-480.0,0.00019178,2]
[387055566,1758556245908,-480.0,0.00019178,2]
[387055569,1758556245918,-480.0,0.00019178,2]
[387055571,1758556245932,-487.51401817,0.00019178,2]
[387055574,1758556245942,-480.0,0.00019178,2]
[387055577,1758556245951,-75.49294294,0.00019178,2]
[387055579,1758556245965,-404.50705706,0.00019178,2]
[387055581,1758556245974,-480.0,0.00019178,2]
[387055583,1758556245984,-333.22478294,0.00019178,2]
[387055655,1758556246491,-148.77198054,0.00019178,2]
[387055657,1758556246501,-480.0,0.00019178,2]
[387055659,1758556246511,-480.0,0.00019178,2]
[387055661,1758556246520,-480.0,0.00019178,2]
[387055663,1758556246529,-480.0,0.00019178,2]
[387055665,1758556246538,-480.0,0.00019178,2]
[387055666,1758556246547,-480.0,0.00019178,2]
[387055669,1758556246558,-480.0,0.00019178,2]
[387055670,1758556246568,-485.42354342,0.00019178,2]
[387055672,1758556246580,-483.47332138,0.00019178,2]
[387055674,1758556246589,-480.0,0.00019178,2]
[387055676,1758556246598,-480.0,0.00019178,2]
[387055678,1758556246608,-495.71836654,0.00019178,2]
[387055680,1758556246618,-480.0,0.00019178,2]
[387055682,1758556246627,-480.0,0.00019178,2]
[387055684,1758556246637,-480.0,0.00019178,2]
[387055686,1758556246647,-480.18660489,0.00019178,2]
[387055688,1758556246657,-567.48,0.00019178,2]
[387055690,1758556246666,-480.0,0.00019178,2]
[387055692,1758556246676,-480.0,0.00019178,2]
[387055694,1758556246685,-480.0,0.00019178,2]
[387055696,1758556246695,-480.0,0.00019178,2]
[387055698,1758556246704,-480.0,0.00019178,2]
[387055700,1758556246714,-480.0,0.00019178,2]
[387055702,1758556246723,-480.0,0.00019178,2]
[387055704,1758556246732,-480.0,0.00019178,2]
[387055706,1758556246742,-500.0,0.00019178,2]
[387055708,1758556246753,-480.0,0.00019178,2]
[387055710,1758556246762,-480.0,0.00019178,2]
[387055712,1758556246772,-480.0,0.00019178,2]
[387055714,1758556246781,-480.0,0.00019178,2]
[387055716,1758556246791,-385.82064467,0.00019178,2]
[387055718,1758556246800,-480.0,0.00019178,2]
[387055720,1758556246810,-480.0,0.00019178,2]
[387055722,1758556246823,-480.0,0.00019178,2]
[387055724,1758556246833,-480.0,0.00019178,2]
[387055726,1758556246843,-480.0,0.00019178,2]
[387055728,1758556246854,-480.0,0.00019178,2]
[387055730,1758556246865,-480.0,0.00019178,2]
[387055732,1758556246875,-480.0,0.00019178,2]
[387055734,1758556246886,-480.0,0.00019178,2]
[387055736,1758556246898,-480.0,0.00019178,2]
[387055738,1758556246908,-480.0,0.00019178,2]
[387055740,1758556246917,-480.0,0.00019178,2]
[387055742,1758556246927,-480.0,0.00019178,2]
[387055744,1758556246939,-480.0,0.00019178,2]
[387055746,1758556246949,-480.0,0.00019178,2]
[387055748,1758556246959,-185.46625712,0.00019178,2]
[387055750,1758556246968,-703.37,0.00019178,2]
[387055751,1758556246978,-480.0,0.00019178,2]
[387055752,1758556246987,-480.0,0.00019178,2]
[387055753,1758556246997,-480.0,0.00019178,2]
[387055754,1758556247006,-480.0,0.00019178,2]
[387055755,1758556247015,-480.0,0.00019178,2]
[387055756,1758556247025,-480.0,0.00019178,2]
[387055757,1758556247034,-480.71304183,0.00019178,2]
[387055758,1758556247043,-480.0,0.00019178,2]
[387055759,1758556247052,-480.0,0.00019178,2]
[387055760,1758556247061,-480.0,0.00019178,2]
[387055761,1758556247072,-482.10345662,0.00019178,2]
[387055762,1758556247081,-1709.26,0.00019178,2]
[387055763,1758556247091,-1709.26,0.00019178,2]
[387055765,1758556247102,-1709.26,0.00019178,2]
[387055767,1758556247112,-1709.26,0.00019178,2]
[387055769,1758556247121,-1709.26,0.00019178,2]
[387055771,1758556247131,-1709.26,0.00019178,2]
[387055773,1758556247141,-1709.26,0.00019178,2]
[387055775,1758556247150,-1709.26,0.00019178,2]
[387055777,1758556247160,-1709.26,0.00019178,2]
[387055778,1758556247169,-1709.26,0.00019178,2]
[387055780,1758556247179,-480.0,0.00019178,2]
[387055782,1758556247188,-480.0,0.00019178,2]
[387055784,1758556247198,-489.80873775,0.00019178,2]
[387055786,1758556247207,-480.0,0.00019178,2]
[387055788,1758556247216,-330.07266687,0.00019178,2]
[387055790,1758556247226,-480.0,0.00019178,2]
[387055792,1758556247236,-480.0,0.00019178,2]
[387055794,1758556247245,-480.0,0.00019178,2]
[387055796,1758556247255,-480.0,0.00019178,2]
[387055798,1758556247264,-480.0,0.00019178,2]
[387055800,1758556247274,-482.3610513,0.00019178,2]
[387055802,1758556247283,-480.0,0.00019178,2]
[387055804,1758556247292,-69.88523516,0.00019178,2]
[387056705,1758556258025,591.65,0.00022004,30]
[387057132,1758556263872,370000.0,0.00018968,2]
[387058066,1758556325818,2211.53,0.00027397,120]
[387058067,1758556340244,588.42,0.00018726,30]
[387058068,1758556340673,1176.85,0.00020429,30]
[387058069,1758556341121,1765.27,0.00022131,30]
[387058070,1758556341573,2353.69,0.00023833,30]
[387058071,1758556420829,556.33,0.00018671,30]
[387058072,1758556421275,1112.66,0.00020369,30]
[387058073,1758556421704,1668.98,0.00022066,30]
[387058074,1758556422178,2225.31,0.00023764,30]
[387058075,1758556426393,370000.0,0.00018968,2]
[387058076,1758556454465,2000.0,0.00029259,60]
[387058077,1758556455485,2000.0,0.00029259,60]
[387058078,1758556456294,2000.0,0.00029259,60]
[387058079,1758556457570,2000.0,0.00029259,60]
[387058080,1758556460623,2000.0,0.00029259,60]
[387058081,1758556461399,2000.0,0.00029259,60]
[387058082,1758556462140,2000.0,0.00029259,60]
[387058083,1758556463996,2000.0,0.00029259,60]
[387058084,1758556464733,2000.0,0.00029259,60]
[387058085,1758556506513,525.98,0.00018686,30]
[387058086,1758556509053,1051.97,0.00020384,30]
[387058087,1758556509580,1577.95,0.00022083,30]
[387058088,1758556510067,2103.93,0.00023782,30]
[387058089,1758556519026,431.395355,0.00018065,2]
[387058091,1758556556435,216.95598578,0.00018492,2]
[387058094,1758556584863,370000.0,0.00018965,2]
[387058095,1758556589011,497.29,0.00018822,30]
[387058096,1758556589438,994.59,0.00020533,30]
[387058097,1758556590072,1491.88,0.00022244,30]
[387058098,1758556590491,1989.17,0.00023955,30]
[387058099,1758556670451,470.17,0.00018874,30]
[387058100,1758556670891,940.34,0.00020589,30]
[387058101,1758556671332,1410.5,0.00022305,30]
[387058102,1758556729544,370000.0,0.00018965,2]
[387058103,1758556752090,454.78,0.00018841,30]
[387058104,1758556752504,909.56,0.00020553,30]
[387058105,1758556752979,1364.34,0.00022266,30]
[387058106,1758556753405,1819.12,0.00023979,30]
[387058107,1758556784572,653.4121004,0.00018062,2]